bitfinex/quotes_ETHUSD_20241003
["timestamp","ask_amount","ask_price","bid_price","bid_amount"]
[1727922156475,0.6267,2396.5,2396.1,4.17333]
[1727922156670,0.6267,2396.5,2396.2,4.17326]
[1727922157276,0.6267,2396.5,2396.2,8.34645]
[1727922157622,0.6267,2396.5,2396.2,4.17319]
[1727922158275,0.6267,2396.8,2396.4,4.17288]
[1727922158481,0.6267,2396.8,2396.5,4.1727]
[1727922158909,4.79893,2396.8,2396.4,4.17288]
[1727922159219,0.6267,2396.8,2396.4,4.17281]
[1727922160420,0.6267,2396.8,2396.4,8.34565]
[1727922160625,0.6267,2396.8,2396.4,4.17281]
[1727922160803,4.79901,2396.8,2396.4,4.17281]
[1727922160983,0.6267,2396.8,2396.4,8.34565]
[1727922161841,0.6267,2396.8,2396.4,4.17291]
[1727922162004,0.6267,2396.8,2396.4,4.17282]
[1727922162441,0.6267,2397.1,2396.7,4.1723]
[1727922162639,0.6267,2397.1,2396.7,8.3446]
[1727922163031,0.6267,2397.1,2396.7,4.1723]
[1727922163236,0.6267,2397.1,2396.7,8.34461]
[1727922163407,0.6267,2397.1,2396.7,4.1723]
[1727922164138,0.6267,2397.1,2396.7,8.3446]
[1727922164329,0.6267,2397.1,2396.7,4.1723]
[1727922165455,4.79849,2397.1,2396.4,1.65772266]
[1727922165756,4.79849,2397.1,2396.2,4.74384533]
[1727922165757,0.6267,2396.6,2396.2,4.17318]
[1727922166612,4.7993,2396.6,2396.1,8.34665]
[1727922166810,0.6267,2396.6,2396.2,4.17326]
[1727922167750,0.6267,2396.6,2396.1,4.1733]
[1727922168055,0.6267,2396.6,2396.2,4.17319]
[1727922170473,0.6267,2396.6,2396.2,5.59608967]
[1727922170967,0.6267,2396.6,2396.4,4.17291]
[1727922173527,0.6267,2396.6,2396.3,4.17309]
[1727922173932,0.6267,2396.6,2396.3,8.34609]
[1727922174166,4.79895,2396.8,2396.3,9.33142123]
[1727922174348,4.79895,2396.8,2396.3,4.173]
[1727922174864,4.17241,2396.7,2396.3,4.173]
[1727922179688,4.79893,2396.8,2396.4,0.7857]
[1727922180244,0.6267,2396.8,2396.4,4.95858]
[1727922180446,0.6267,2396.8,2396.4,5.95893027]
[1727922181251,4.1724,2396.7,2396.4,1.00035027]
[1727922181587,8.34491,2396.7,2396.2,4.17319]
[1727922181882,4.17276,2396.5,2396.1,5.83563266]
[1727922182080,4.17276,2396.5,2396.1,4.96371]
[1727922182283,4.1724,2396.7,2396.2,4.17319]
[1727922182493,4.79894,2396.8,2396.3,8.34608]
[1727922182795,4.17243,2396.7,2396.3,4.17299]
[1727922183897,4.17258,2396.6,2396.2,4.17327]
[1727922185283,4.17258,2396.6,2396.1,10.00899266]
[1727922185593,4.17243,2396.7,2396.2,4.17317]
[1727922185745,4.17262,2396.6,2396.2,4.17317]
[1727922185946,4.17243,2396.7,2396.2,4.17317]
[1727922186147,4.17243,2396.7,2396.3,4.17308]
[1727922186663,4.17243,2396.7,2396.2,5.00074643]
[1727922188841,4.17243,2396.7,2396.2,5.00069643]
[1727922189072,4.17243,2396.7,2396.2,4.17319]
[1727922189240,4.17243,2396.7,2396.2,8.34636]
[1727922189676,4.17243,2396.7,2396.2,4.17317]
[1727922190277,8.34493,2396.7,2396.2,4.17317]
[1727922190679,4.17268,2396.6,2396.2,4.17326]
[1727922191071,4.17268,2396.6,2396.1,0.7904]
[1727922191072,4.17282,2396.5,2396.1,4.96382]
[1727922192241,0.6267,2396.8,2396.1,2.79403233]
[1727922192487,4.17215,2396.9,2396.4,4.17283]
[1727922192700,8.34433,2396.9,2396.4,4.17283]
[1727922193153,4.17215,2396.9,2396.4,4.17283]
[1727922193350,4.79894,2396.8,2396.2,4.97826]
[1727922193556,4.17249,2396.7,2396.2,4.97826]
[1727922193749,4.17249,2396.7,2396.3,4.17309]
[1727922194778,4.17249,2396.7,2396.2,5.85018266]
[1727922195056,4.17249,2396.7,2396.2,9.15146]
[1727922195255,4.17249,2396.7,2396.2,10.02338266]
[1727922195657,4.17249,2396.7,2396.2,5.85018266]
[1727922196166,4.17244,2396.7,2396.1,5.04527266]
[1727922196370,4.17244,2396.7,2396.2,5.04510266]
[1727922196896,8.34497,2396.7,2396.2,5.04510266]
[1727922197079,4.17261,2396.6,2396.2,5.04510266]
[1727922197286,4.17261,2396.6,2396.2,4.17318]
[1727922198369,4.17244,2396.7,2396.2,5.04510266]
[1727922198569,4.17244,2396.7,2396.2,5.04508266]
[1727922198766,4.17259,2396.6,2396.2,4.17316]
[1727922199826,4.17276,2396.5,2396.1,4.17337]
[1727922200332,4.17276,2396.5,2396.1,4.17336]
[1727922201540,4.79901,2396.8,2396.3,4.17301]
[1727922201829,4.17258,2396.6,2396.2,4.98736]
[1727922202326,4.79894,2396.8,2396.2,4.9873]
[1727922202327,4.17242,2396.7,2396.2,4.9873]
[1727922203428,4.17258,2396.6,2396.2,4.98745]
[1727922203629,4.17258,2396.6,2396.1,5.481164]
[1727922203840,0.6267,2396.4,2396.1,4.17328]
[1727922204643,0.6267,2396.4,2396.1,8.34663]
[1727922204935,4.17258,2396.6,2396.2,5.2144814]
[1727922205148,4.79913,2396.7,2396.2,5.2144814]
[1727922205639,4.17259,2396.6,2396.2,4.17325]
[1727922206821,4.17259,2396.6,2396.1,1.307884]
[1727922207021,4.17259,2396.6,2396.0,6.239284]
[1727922207243,4.17277,2396.5,2396.1,4.17343]
[1727922208575,4.17294,2396.4,2396.0,6.239284]
[1727922208726,4.17294,2396.4,2396.1,1.22295233]
[1727922208931,4.79978,2396.4,2396.1,0.87578325]
[1727922209130,4.79978,2396.4,2396.0,0.87578325]
[1727922209131,4.1731,2396.3,2396.0,0.87578325]
[1727922209468,8.34633,2396.3,2396.0,0.87578325]
[1727922209662,4.1731,2396.3,2396.0,0.87578325]
[1727922209877,0.6267,2396.4,2395.9,0.87578325]
[1727922209878,8.34677,2396.2,2395.9,0.87578325]
[1727922211879,8.34677,2396.2,2395.8,0.7653]
[1727922211880,4.17355,2396.1,2395.8,1.64108325]
[1727922212741,4.17336,2396.2,2395.8,1.64108325]
[1727922213270,4.17336,2396.2,2395.8,5.81504325]
[1727922214852,4.17336,2396.2,2395.8,1.64108325]
[1727922215884,8.34676,2396.2,2395.8,1.64108325]
[1727922216093,4.17336,2396.2,2395.8,1.64108325]
[1727922217462,8.34673,2396.2,2395.8,0.7653]
[1727922217985,4.17336,2396.2,2395.8,0.7653]
[1727922218580,4.17353,2396.1,2395.8,0.7653]
[1727922219095,4.17363,2396.0,2395.8,0.7653]
[1727922219276,4.17353,2396.1,2395.8,0.7653]
[1727922219596,4.17338,2396.2,2395.8,4.93926]
[1727922220276,4.17338,2396.2,2395.8,0.7653]
[1727922221391,4.17346,2396.1,2395.8,0.7653]
[1727922221595,0.6267,2395.8,2395.5,0.87578325]
[1727922221797,4.17464,2395.5,2395.2,0.87578325]
[1727922221962,5.44111213,2395.6,2395.2,0.87578325]
[1727922221963,4.80079,2395.8,2395.2,1.26680213]
[1727922222293,11.56259,2396.6,2395.4,4.98228]
[1727922222294,4.17381,2395.9,2395.4,4.98228]
[1727922223303,5.44090213,2395.8,2395.4,0.8077]
[1727922223445,4.17439,2395.6,2395.4,0.8077]
[1727922224087,4.17439,2395.6,2394.8,0.8115]
[1727922224088,4.17505,2395.2,2394.8,0.8115]
[1727922224297,4.17533,2395.1,2394.8,0.8115]
[1727922224501,4.17564,2394.9,2394.6,0.759]
[1727922224682,5.44244213,2394.9,2394.6,0.759]
[1727922225288,4.17564,2394.9,2394.6,0.759]
[1727922225802,4.17564,2394.9,2394.4,4.17628]
[1727922225803,4.17606,2394.7,2394.4,0.8313]
[1727922226165,5.44286213,2394.7,2394.2,5.008]
[1727922226349,4.1761,2394.6,2394.2,0.8313]
[1727922226549,4.17625,2394.5,2394.2,0.8313]
[1727922227985,8.35207,2394.7,2394.2,0.8313]
[1727922228148,4.17615,2394.6,2394.2,0.8313]
[1727922228347,4.17615,2394.6,2394.0,4.17695]
[1727922228571,0.6267,2394.5,2394.0,4.99745]
[1727922229190,4.17642,2394.4,2394.0,4.99745]
[1727922231372,4.80303,2394.5,2394.0,4.99745]
[1727922232002,4.17642,2394.4,2394.0,0.8205]
[1727922232196,0.6267,2394.5,2394.0,4.99757]
[1727922232406,4.80303,2394.5,2394.0,4.99757]
[1727922233573,4.80303,2394.5,2394.0,0.8205]
[1727922234587,4.80303,2394.5,2394.0,4.99758]
[1727922235514,4.80303,2394.5,2394.0,0.8205]
[1727922235667,8.97936,2394.5,2394.0,4.9976]
[1727922235873,4.17602,2394.7,2394.2,0.7924]
[1727922236072,7.39,2394.9,2394.4,4.17633]
[1727922236280,11.56554,2394.9,2394.5,0.7924]
[1727922236898,15.74121,2394.9,2394.5,0.7924]
[1727922237099,11.56554,2394.9,2394.5,0.7924]
[1727922237271,7.39,2394.9,2394.5,0.7924]
[1727922237583,11.56554,2394.9,2394.5,4.96854]
[1727922238513,11.56554,2394.9,2394.5,0.7924]
[1727922238877,4.17582,2394.8,2394.5,0.7924]
[1727922240274,4.17554,2394.9,2394.5,0.7924]
[1727922240617,4.17538,2395.0,2394.6,4.17606]
[1727922240978,4.1753,2395.1,2394.6,4.17606]
[1727922240979,4.17529,2395.1,2394.6,4.17606]
[1727922241376,4.17529,2395.1,2394.5,4.96857]
[1727922241575,4.1755,2395.0,2394.5,4.96857]
[1727922242009,4.17597,2394.7,2394.5,0.7924]
[1727922244695,4.17606,2394.6,2394.2,0.7528]
[1727922246834,4.80305,2394.5,2394.0,5.00841]
[1727922247041,4.17666,2394.3,2394.0,0.8314]
[1727922247328,0.6267,2394.5,2393.8,5.00871]
[1727922247329,4.17676,2394.2,2393.8,5.00871]
[1727922247488,4.17676,2394.2,2393.8,0.8314]
[1727922248187,4.17651,2394.4,2393.8,5.00883]
[1727922248522,4.17661,2394.3,2393.8,0.8314]
[1727922248690,4.17694,2394.1,2393.8,0.8314]
[1727922249885,8.354,2394.1,2393.8,0.8314]
[1727922250122,4.17694,2394.1,2393.8,0.8314]
[1727922250722,4.80364,2394.1,2393.6,4.9319]
[1727922251233,4.80364,2394.1,2393.6,9.10962]
[1727922253304,4.17689,2394.2,2393.7,4.1775]
[1727922254990,4.80342,2394.3,2393.8,4.17744]
[1727922255351,4.17667,2394.3,2393.9,0.8132]
[1727922255630,4.17686,2394.2,2393.9,0.8132]
[1727922258137,4.17711,2394.0,2393.7,0.8309]
[1727922258633,8.35371,2394.2,2393.7,5.00845]
[1727922258831,4.17685,2394.2,2393.8,4.17743]
[1727922259556,4.17685,2394.2,2393.8,4.17745]
[1727922260246,8.3537,2394.2,2393.7,5.00851]
[1727922260406,4.17685,2394.2,2393.7,5.00851]
[1727922260746,4.17685,2394.2,2393.7,0.8309]
[1727922261141,4.17695,2394.1,2393.7,0.8309]
[1727922261456,4.17695,2394.1,2393.7,5.00849]
[1727922263044,4.17685,2394.2,2393.7,5.00849]
[1727922263222,4.17685,2394.2,2393.7,5.927118]
[1727922263735,8.35375,2394.2,2393.7,5.927118]
[1727922264162,4.80322,2394.4,2393.8,4.17743]
[1727922264476,7.39,2394.8,2394.3,4.17649]
[1727922264692,0.6267,2394.9,2394.5,4.17623]
[1727922264693,4.17561,2394.9,2394.5,4.17623]
[1727922264823,11.56503,2395.2,2394.7,4.17578]
[1727922265168,4.17503,2395.2,2394.7,4.17578]
[1727922265324,4.17538,2395.0,2394.6,0.7533]
[1727922266159,4.17538,2395.0,2394.6,4.92934]
[1727922266971,4.17519,2395.1,2394.6,9.10529]
[1727922267150,4.17512,2395.2,2394.7,4.17579]
[1727922267478,8.3503,2395.2,2394.7,4.17579]
[1727922267643,4.17512,2395.2,2394.6,5.839779]
[1727922267843,4.17527,2395.1,2394.6,9.10521]
[1727922268385,4.17527,2395.1,2394.6,4.92925]
[1727922269538,4.17527,2395.1,2394.6,9.10523]
[1727922269845,4.17512,2395.2,2394.6,4.92925]
[1727922270046,4.17544,2395.0,2394.6,4.92925]
[1727922270246,4.17512,2395.2,2394.6,4.92925]
[1727922270472,8.35031,2395.2,2394.7,4.17588]
[1727922270852,4.17512,2395.2,2394.6,4.92935]
[1727922271057,0.6267,2395.4,2394.6,4.92935]
[1727922271058,4.17556,2394.9,2394.6,0.7533]
[1727922271245,4.17556,2394.9,2394.4,9.1804]
[1727922271459,4.17556,2394.9,2394.4,5.00408]
[1727922271773,4.80208,2395.0,2394.5,4.1762]
[1727922272270,4.80209,2395.0,2394.5,8.35233]
[1727922272842,4.80209,2395.0,2394.5,4.17613]
[1727922273098,4.17565,2394.9,2394.4,5.00419]
[1727922273995,4.17565,2394.9,2394.5,4.17622]
[1727922274856,8.9776,2395.0,2394.5,4.17622]
[1727922275059,8.97756,2395.0,2394.5,4.17622]
[1727922275243,4.80209,2395.0,2394.5,4.17622]
[1727922275448,4.80209,2395.0,2394.5,8.35237]
[1727922275746,4.80209,2395.0,2394.5,4.17615]
[1727922276490,4.17561,2394.9,2394.4,5.00411]
[1727922277557,4.1758,2394.8,2394.4,0.8278]
[1727922279343,4.17561,2394.9,2394.4,0.8278]
[1727922279549,4.17588,2394.7,2394.4,0.8278]
[1727922280790,4.1759,2394.7,2394.3,4.17657]
[1727922280991,8.35189,2394.7,2394.3,4.17657]
[1727922281290,4.1759,2394.7,2394.3,4.17657]
[1727922281454,8.35192,2394.7,2394.2,4.98864]
[1727922281652,4.17624,2394.5,2394.1,4.17685]
[1727922281975,4.80279,2394.6,2394.1,4.17685]
[1727922282152,4.80279,2394.6,2394.2,4.1766]
[1727922282153,4.80276,2394.6,2394.2,4.1766]
[1727922282966,4.80276,2394.6,2394.1,4.17685]
[1727922283162,8.97892,2394.6,2394.1,4.17685]
[1727922283366,4.17625,2394.5,2394.1,4.17685]
[1727922283678,4.17625,2394.5,2394.0,4.97378]
[1727922283877,4.17625,2394.5,2394.1,4.17691]
[1727922284079,4.17625,2394.5,2394.0,4.97378]
[1727922284765,4.80276,2394.6,2394.0,4.97378]
[1727922284961,4.80276,2394.6,2393.8,4.17732]
[1727922284962,4.17676,2394.2,2393.8,4.97402]
[1727922285201,8.35363,2394.2,2393.8,0.7967]
[1727922285723,4.17676,2394.2,2393.8,0.7967]
[1727922286623,8.35365,2394.2,2393.8,0.7967]
[1727922286787,4.17701,2394.1,2393.6,8.35536]
[1727922287188,4.17701,2394.1,2393.7,4.17762]
[1727922287631,4.17727,2394.0,2393.5,4.97467]
[1727922287786,0.6267,2393.9,2393.5,4.97467]
[1727922288319,0.6267,2393.9,2393.5,0.7967]
[1727922288520,0.6267,2393.9,2393.0,4.05853419]
[1727922288521,8.35516,2393.8,2393.3,4.97499]
[1727922288722,4.17754,2393.8,2393.3,4.97499]
[1727922289228,8.35511,2393.8,2393.3,4.97499]
[1727922289587,8.35513,2393.8,2393.3,4.97499]
[1727922289818,4.17754,2393.8,2393.3,4.97499]
[1727922292033,4.17754,2393.8,2393.3,0.7967]
[1727922292202,4.17782,2393.6,2393.3,0.7967]
[1727922292401,4.80483,2393.5,2393.0,0.8331]
[1727922292601,4.80483,2393.5,2393.0,5.01193]
[1727922292602,4.17824,2393.4,2393.0,5.01193]
[1727922292833,4.80483,2393.5,2393.0,5.01193]
[1727922295477,4.8048,2393.5,2393.0,5.01193]
[1727922297228,4.8048,2393.5,2393.1,4.17865]
[1727922297436,4.8048,2393.5,2393.0,9.691893]
[1727922297674,4.8048,2393.5,2393.0,5.513063]
[1727922300334,4.8048,2393.5,2393.0,5.513043]
[1727922300688,7.1773,2393.9,2393.6,0.7602]
[1727922300689,4.17736,2393.9,2393.6,0.7602]
[1727922301050,4.17758,2393.8,2393.4,0.7626]
[1727922301272,14.31743019,2394.2,2393.1,4.7298443]
[1727922301273,4.17804,2393.5,2393.1,0.7626]
[1727922301451,0.6267,2393.7,2393.1,0.7626]
[1727922301452,4.17827,2393.4,2393.1,0.7626]
[1727922303445,8.35653,2393.4,2393.1,0.7626]
[1727922303678,4.17826,2393.4,2393.1,0.7626]
[1727922303974,4.17798,2393.5,2393.1,0.7626]
[1727922305290,4.17791,2393.6,2393.1,4.94119]
[1727922305462,4.17791,2393.6,2393.1,5.435334]
[1727922305663,8.35581,2393.6,2393.1,5.435334]
[1727922306189,4.1779,2393.6,2393.1,5.435334]
[1727922306401,4.178,2393.5,2393.1,1.256744]
[1727922307789,11.56732,2393.9,2393.3,0.8074]
[1727922307956,11.56732,2393.9,2393.2,3.71207759]
[1727922307957,7.39,2393.9,2393.5,4.17786]
[1727922308154,4.8036,2394.2,2393.6,0.8074]
[1727922308368,4.17694,2394.1,2393.7,4.1776]
[1727922308697,4.17711,2394.0,2393.6,4.98519]
[1727922309497,8.354,2394.1,2393.6,6.17657402]
[1727922309661,4.17694,2394.1,2393.6,6.17657402]
[1727922309856,8.35396,2394.1,2393.6,6.17657402]
[1727922310599,4.17718,2394.0,2393.6,1.99878402]
[1727922310767,10.39,2394.3,2393.6,1.99878402]
[1727922310967,0.6267,2394.4,2393.8,0.8237]
[1727922310968,4.17684,2394.2,2393.8,0.8237]
[1727922311157,4.17684,2394.2,2393.8,7.75180019]
[1727922311353,4.17684,2394.2,2393.8,5.00115]
[1727922311765,4.17659,2394.3,2393.8,5.00107]
[1727922311987,4.17659,2394.3,2393.9,0.56187444]
[1727922312187,8.0167,2394.6,2393.9,0.56187444]
[1727922312384,4.17643,2394.4,2394.0,0.8105]
[1727922312693,4.17668,2394.3,2394.0,0.8105]
[1727922312905,4.17668,2394.3,2394.0,1.36547444]
[1727922313457,4.17677,2394.2,2394.0,0.8105]
[1727922313893,4.17659,2394.3,2394.0,0.8105]
[1727922315306,4.17676,2394.2,2394.0,0.8105]
[1727922315476,4.17659,2394.3,2394.0,0.8105]
[1727922316603,8.0167,2394.6,2393.7,0.6176744]
[1727922316604,4.17693,2394.1,2393.7,0.8212]
[1727922316972,4.17693,2394.1,2393.7,4.99883]
[1727922317309,8.35396,2394.1,2393.7,0.8212]
[1727922317508,4.17693,2394.1,2393.7,0.8212]
[1727922318111,0.6267,2394.2,2393.7,4.9988]
[1727922318307,4.80346,2394.2,2393.7,4.9988]
[1727922318809,0.6267,2394.2,2393.7,0.8212]
[1727922318979,4.17702,2394.1,2393.7,0.8212]
[1727922319576,0.6267,2394.2,2393.4,4.17801]
[1727922319577,2.75065019,2394.4,2393.4,4.98041]
[1727922319768,2.75065019,2394.4,2392.8,0.8024]
[1727922319769,0.6267,2393.5,2392.8,0.8024]
[1727922320081,4.17827,2393.4,2392.8,0.8024]
[1727922320616,7.8048,2393.5,2392.8,4.98159]
[1727922320769,4.17818,2393.4,2392.8,0.8024]
[1727922322172,4.17768,2393.7,2393.0,4.17872]
[1727922322518,4.17733,2393.9,2393.0,4.17872]
[1727922322519,0.6267,2394.3,2393.1,0.8196]
[1727922322704,4.17713,2394.0,2393.5,0.8196]
[1727922324253,4.17729,2393.9,2393.5,0.8196]
[1727922324653,8.35472,2393.9,2393.5,0.8196]
[1727922325200,4.17729,2393.9,2393.5,0.8196]
[1727922325404,8.35474,2393.9,2393.5,0.8196]
[1727922325810,4.17729,2393.9,2393.5,0.8196]
[1727922326005,8.3547,2393.9,2393.5,0.8196]
[1727922326530,4.17747,2393.8,2393.5,0.8196]
[1727922328226,4.17766,2393.7,2393.5,0.8196]
[1727922328541,4.17747,2393.8,2393.5,0.8196]
[1727922328902,4.17764,2393.7,2393.5,0.8196]
[1727922329442,4.17747,2393.8,2393.5,0.8196]
[1727922330508,4.17724,2394.0,2393.5,1.737203]
[1727922330642,7.39,2394.3,2393.9,6.92785019]
[1727922330869,4.17651,2394.4,2394.0,0.8025]
[1727922331155,7.39,2394.7,2394.0,0.8025]
[1727922331455,4.17682,2394.2,2394.0,0.8025]
[1727922331660,4.17718,2394.0,2393.6,0.8025]
[1727922331821,4.17747,2393.8,2393.6,0.8025]
[1727922332160,4.17747,2393.8,2393.3,0.8025]
[1727922332161,4.17763,2393.7,2393.3,0.8025]
[1727922332627,4.17799,2393.5,2393.3,0.8025]
[1727922332836,4.17799,2393.5,2392.7,11.49853419]
[1727922332837,4.17833,2393.3,2393.1,0.8025]
[1727922333158,4.17799,2393.5,2393.1,0.8025]
[1727922333333,4.17818,2393.4,2393.1,0.8025]
[1727922334152,4.17799,2393.5,2393.1,0.8025]
[1727922334557,8.35607,2393.5,2393.1,0.8025]
[1727922334764,4.17799,2393.5,2393.1,0.8025]
[1727922336176,4.80469,2393.5,2393.0,4.17883]
[1727922338079,8.98276,2393.5,2393.0,4.17876]
[1727922338376,4.80469,2393.5,2393.0,4.17876]
[1727922339040,4.80469,2393.5,2392.9,0.7964]
[1727922339232,4.17827,2393.4,2392.9,0.7964]
[1727922340382,4.80469,2393.5,2393.0,4.17883]
[1727922340538,4.17799,2393.5,2393.0,4.17883]
[1727922341087,4.17799,2393.5,2393.0,8.35757]
[1727922341239,4.17799,2393.5,2393.0,4.17874]
[1727922342837,4.17799,2393.5,2392.9,0.7964]
[1727922343037,4.17826,2393.4,2392.9,4.97536]
[1727922343341,4.17826,2393.4,2393.0,4.17882]
[1727922343740,4.17782,2393.6,2393.0,5.094238]
[1727922344080,4.17808,2393.5,2393.0,5.094238]
[1727922344385,4.17808,2393.5,2393.0,4.17882]
[1727922344678,4.17808,2393.5,2393.0,8.35759]
[1727922346475,4.17808,2393.5,2393.1,4.17866]
[1727922347377,4.17783,2393.6,2393.1,4.17866]
[1727922349071,4.17806,2393.5,2393.0,4.17877]
[1727922349335,4.17806,2393.5,2392.3,0.87578325]
[1727922349336,4.17941,2392.7,2392.3,0.87578325]
[1727922349476,4.17941,2392.7,2392.2,4.18009]
[1727922349680,4.17914,2392.9,2392.2,4.18009]
[1727922349681,4.17914,2392.9,2392.2,5.092466]
[1727922349911,3.0,2392.8,2392.4,0.8096]
[1727922350081,7.1792,2392.8,2392.4,0.8096]
[1727922350779,4.17914,2392.9,2392.4,4.98933]
[1727922351884,8.35829,2392.9,2392.4,4.98933]
[1727922352591,8.35829,2392.9,2392.4,5.906267]
[1727922352592,4.17914,2392.9,2392.4,5.906267]
[1727922353028,4.17914,2392.9,2392.5,4.17971]
[1727922353303,4.17878,2393.1,2392.6,0.8117]
[1727922353628,8.35758,2393.1,2392.6,4.99116]
[1727922353927,8.35758,2393.1,2392.6,5.9999297]
[1727922354280,4.17889,2393.0,2392.6,1.8204697]
[1727922354680,4.17878,2393.1,2392.6,5.9999097]
[1727922354925,8.35758,2393.1,2392.7,1.01795097]
[1727922355108,4.17878,2393.1,2392.7,5.19730097]
[1727922355620,4.17878,2393.1,2392.7,1.01795097]
[1727922356765,8.35754,2393.1,2392.7,1.01795097]
[1727922357034,8.35754,2393.1,2392.8,0.6009091]
[1727922357226,4.17877,2393.1,2392.8,0.6009091]
[1727922358890,8.35756,2393.1,2392.8,0.6009091]
[1727922360029,4.17877,2393.1,2392.8,0.6009091]
[1727922361129,8.35754,2393.1,2392.8,0.6009091]
[1727922361292,4.17877,2393.1,2392.8,0.6009091]
[1727922361624,8.35755,2393.1,2392.8,0.6009091]
[1727922361825,4.17877,2393.1,2392.8,0.6009091]
[1727922363620,4.17877,2393.1,2392.9,0.8159]
[1727922364518,0.6267,2393.7,2393.2,4.17833]
[1727922364831,11.5674,2393.9,2393.5,4.17797]
[1727922364832,7.39,2393.9,2393.5,4.17797]
[1727922365343,7.39,2393.9,2393.5,5.093976]
[1727922365628,7.39,2394.4,2393.6,3.56675019]
[1727922365788,4.17694,2394.1,2393.6,7.74452019]
[1727922365988,4.17694,2394.1,2393.6,6.27770662]
[1727922366433,4.17733,2393.9,2393.6,0.8161]
[1727922367391,4.80365,2394.1,2393.6,0.8161]
[1727922367722,4.80365,2394.1,2393.6,4.9939]
[1727922367927,8.98069,2394.1,2393.6,4.9939]
[1727922368841,8.98069,2394.1,2393.4,4.17806]
[1727922368842,0.6267,2394.1,2393.4,0.8145]
[1727922369140,2.75065019,2394.0,2393.2,0.8145]
[1727922369432,4.17789,2393.6,2393.2,0.8145]
[1727922369793,4.17763,2393.7,2393.2,0.8145]
[1727922369992,3.6267,2394.1,2393.2,3.98280478]
[1727922370193,0.6267,2394.5,2394.0,4.17709]
[1727922370431,4.176,2394.7,2394.2,4.17672]
[1727922370797,4.176,2394.7,2394.2,4.17674]
[1727922371394,4.80248,2394.8,2394.3,4.17657]
[1727922371910,3.0,2394.8,2394.3,4.17647]
[1727922372087,7.39,2394.9,2394.5,4.97793]
[1727922372296,4.17515,2395.2,2394.7,4.17585]
[1727922372598,4.1752,2395.1,2394.6,8.35202]
[1727922372802,8.0167,2395.3,2394.5,0.8018]
[1727922373013,4.17534,2395.1,2394.5,0.8018]
[1727922373203,4.17534,2395.1,2394.6,4.17603]
[1727922373596,4.17536,2395.0,2394.5,0.8018]
[1727922374104,4.17554,2394.9,2394.5,0.8018]
[1727922376121,4.17536,2395.0,2394.5,0.8018]
[1727922376498,4.17536,2395.0,2394.5,4.9779]
[1727922376700,7.17519,2395.1,2394.6,4.17602]
[1727922376901,7.39,2395.3,2394.6,0.7932]
[1727922377204,7.39,2395.3,2395.0,0.7932]
[1727922377549,4.17477,2395.4,2395.0,0.7932]
[1727922378252,4.17477,2395.4,2395.0,4.96854]
[1727922378597,4.17477,2395.4,2395.0,0.7932]
[1727922379613,8.3496,2395.4,2395.0,0.7932]
[1727922380405,4.17477,2395.4,2395.0,0.7932]
[1727922380597,8.34953,2395.4,2395.0,0.7932]
[1727922380829,4.17476,2395.4,2395.0,0.7932]
[1727922381402,8.34959,2395.4,2395.0,0.7932]
[1727922384349,4.17476,2395.4,2395.0,0.7932]
[1727922384644,4.17476,2395.4,2394.7,4.17582]
[1727922384645,4.17502,2395.2,2394.8,0.8199]
[1727922386353,4.1754,2395.0,2394.6,0.8285]
[1727922386874,4.1754,2395.0,2394.6,5.00454]
[1727922387442,4.17534,2395.1,2394.6,5.00454]
[1727922387651,4.17539,2395.0,2394.6,5.00454]
[1727922387847,4.17534,2395.1,2394.6,5.00454]
[1727922388438,0.6267,2395.2,2394.6,0.8285]
[1727922388772,4.17556,2394.9,2394.6,0.8285]
[1727922389074,4.17573,2394.8,2394.4,0.7811]
[1727922389584,4.17583,2394.8,2394.3,4.1765]
[1727922389734,3.0,2394.9,2394.5,4.17612]
[1727922389936,3.0,2395.0,2394.6,4.93818]
[1727922390538,7.1754,2395.0,2394.6,4.93818]
[1727922391875,7.39,2395.2,2394.8,4.1757]
[1727922392078,7.39,2395.2,2394.9,0.8309]
[1727922392386,4.1749,2395.3,2394.9,5.00634]
[1727922396096,4.17469,2395.4,2394.9,5.00634]
[1727922396264,4.17469,2395.4,2394.9,5.924549]
[1727922396851,4.17484,2395.3,2394.9,5.924549]
[1727922397653,8.34985,2395.3,2394.9,1.749109]
[1727922397854,4.17504,2395.2,2394.9,0.8309]
[1727922402398,4.17464,2395.5,2394.9,5.00635]
[1727922402399,4.17486,2395.3,2394.9,5.00635]
[1727922402975,4.17486,2395.3,2394.9,0.8309]
[1727922404903,8.34981,2395.3,2394.9,0.8309]
[1727922405320,4.17486,2395.3,2394.9,0.8309]
[1727922405466,4.17503,2395.2,2394.9,0.8309]
[1727922411904,4.17536,2395.1,2394.7,0.7908]
[1727922412203,4.17536,2395.1,2394.7,4.96667]
[1727922414807,8.35068,2395.1,2394.7,0.7908]
[1727922415007,4.17532,2395.1,2394.7,0.7908]
[1727922417619,4.17532,2395.1,2394.7,4.96668]
[1727922417924,4.17498,2395.3,2394.7,4.96668]
[1727922418108,4.17505,2395.2,2394.7,5.96852433]
[1727922420128,4.17526,2395.1,2394.7,5.96852433]
[1727922420329,4.17526,2395.1,2394.7,4.96668]
[1727922420830,4.17526,2395.1,2394.7,0.7908]
[1727922421041,4.80218,2395.0,2394.5,4.92663]
[1727922421191,4.17556,2394.9,2394.5,4.92663]
[1727922421728,4.17556,2394.9,2394.5,4.92655]
[1727922423053,0.6267,2395.0,2394.3,1.64598325]
[1727922423188,2.75065019,2395.2,2394.1,1.64598325]